lending/lending_fUSD_20240605
["ID","MTS","AMOUNT","RATE_DAILY","PERIOD"]
[328624925,1717622843158,-250.0,0.000247,7]
[328624926,1717622843180,-721.59639319,0.00028222,2]
[328624927,1717622843202,-519.73,0.00028282,2]
[328624928,1717622843226,-8654.39011743,0.00028291,2]
[328624929,1717622848101,-226.57668191,0.00022499,2]
[328624930,1717622848120,-193.02882021,0.00028291,2]
[328624931,1717622859618,195.60497769,0.00017259,2]
[328624932,1717622971699,229.18,0.00024384,2]
[328624934,1717623014618,2610.75390442,0.00016914,2]
[328624935,1717623015564,268.48809142,0.00017259,2]
[328624936,1717623017218,201.51061122,0.00017259,2]
[328624942,1717623032046,-226.57668191,0.00024999,2]
[328624943,1717623032056,-1250.0,0.00025,2]
[328624944,1717623032065,-1300.0,0.00027,2]
[328624945,1717623032074,-713.68646057,0.00028189,2]
[328624946,1717623032084,-563.10404295,0.0002819,4]
[328624947,1717623032093,-446.22492722,0.00028291,2]
[328624948,1717623032102,-151.0,0.00028361,7]
[328624949,1717623032113,-319.04,0.00028419,2]
[328624950,1717623032122,-563.10404295,0.0002842,4]
[328624951,1717623032132,-250.0,0.00028461,2]
[328624952,1717623032142,-1000.0,0.00028475,2]
[328624953,1717623032151,-699.79,0.00028486,2]
[328624954,1717623032160,-154.9,0.00028501,2]
[328624955,1717623032168,-2587.95,0.0002852,2]
[328624956,1717623032177,-724.68,0.00028538,2]
[328624957,1717623032187,-156.96,0.00028626,2]
[328624958,1717623032198,-4472.55,0.00028646,2]
[328624959,1717623032209,-23900.0,0.00028653,2]
[328624960,1717623032219,-625.63244102,0.00028798,2]
[328624961,1717623032229,-500.0,0.000288,7]
[328624962,1717623032238,-750.51,0.00028808,2]
[328624963,1717623032247,-514.78429134,0.00029,5]
[328624964,1717623032256,-151.0,0.0002918,7]
[328624965,1717623032266,-226.12840034,0.000295,3]
[328624966,1717623032278,-389.985744,0.000295,2]
[328624967,1717623032287,-162.09,0.000295,2]
[328624968,1717623032298,-275.7836714,0.00029698,2]
[328624969,1717623032308,-165.10456357,0.00029699,2]
[328624970,1717623032318,-152.23419922,0.00029718,2]
[328624971,1717623032328,-1000.0,0.00029759,30]
[328624972,1717623032337,-1000.0,0.00029789,2]
[328624973,1717623032347,-1007.0,0.0002979,5]
[328624974,1717623032356,-1000.0,0.00029796,2]
[328624975,1717623032367,-157.81,0.00029808,30]
[328624976,1717623032382,-154.14876978,0.00029818,2]
[328624977,1717623032394,-163.03397373,0.0002988,2]
[328624978,1717623032404,-5735.8246,0.00029899,2]
[328624979,1717623032414,-158.0,0.00029899,2]
[328624980,1717623032424,-460.0,0.00029899,2]
[328624981,1717623032433,-1000.0,0.000299,2]
[328624982,1717623032443,-18702.25190815,0.000299,2]
[328624983,1717623032453,-13430.783,0.000299,2]
[328624984,1717623032462,-168.10608323,0.000299,2]
[328624985,1717623032472,-168.24589955,0.000299,2]
[328624986,1717623032481,-500.0,0.000299,3]
[328624989,1717623032491,-999.1,0.000299,2]
[328624991,1717623032500,-431.28549996,0.000299,2]
[328624994,1717623032509,-1417.57603015,0.000299,2]
[328624997,1717623032518,-303.68,0.000299,2]
[328625000,1717623032527,-1263.73919792,0.000299,2]
[328625002,1717623032537,-1194.18071078,0.000299,2]
[328625004,1717623032546,-153.05703102,0.00029921,2]
[328625006,1717623032556,-157.84633629,0.00029959,2]
[328625008,1717623032565,-152.23419922,0.00029966,2]
[328625010,1717623032574,-154.9,0.00029986,2]
[328625012,1717623032583,-184.66,0.00029988,3]
[328625014,1717623032592,-171.82,0.0002999,2]
[328625016,1717623032601,-387.85,0.0002999,2]
[328625018,1717623032610,-290.0,0.0002999,15]
[328625020,1717623032619,-151.65,0.0002999,2]
[328625022,1717623032628,-151.65,0.0002999,2]
[328625024,1717623032638,-151.65,0.0002999,2]
[328625027,1717623032647,-151.65,0.0002999,2]
[328625028,1717623032656,-151.65,0.0002999,2]
[328625029,1717623032666,-151.65,0.0002999,2]
[328625030,1717623032675,-151.65,0.0002999,2]
[328625031,1717623032684,-151.65,0.0002999,2]
[328625032,1717623032694,-151.65,0.0002999,2]
[328625033,1717623032703,-151.65,0.0002999,2]
[328625034,1717623032713,-151.65,0.0002999,2]
[328625035,1717623032724,-151.65,0.0002999,2]
[328625036,1717623032733,-151.65,0.0002999,2]
[328625037,1717623032742,-151.65,0.0002999,2]
[328625038,1717623032751,-151.65,0.0002999,2]
[328625039,1717623032760,-151.65,0.0002999,2]
[328625040,1717623032769,-151.65,0.0002999,2]
[328625042,1717623032778,-151.65,0.0002999,2]
[328625044,1717623032788,-151.65,0.0002999,2]
[328625046,1717623032798,-151.65,0.0002999,2]
[328625048,1717623032807,-151.65,0.0002999,2]
[328625050,1717623032816,-151.65,0.0002999,2]
[328625052,1717623032826,-151.65,0.0002999,2]
[328625054,1717623032835,-151.65,0.0002999,2]
[328625056,1717623032844,-151.65,0.0002999,2]
[328625058,1717623032854,-151.65,0.0002999,2]
[328625060,1717623032864,-151.65,0.0002999,2]
[328625062,1717623032874,-151.65,0.0002999,2]
[328625064,1717623032883,-151.65,0.0002999,2]
[328625065,1717623032893,-151.65,0.0002999,2]
[328625066,1717623032902,-151.65,0.0002999,2]
[328625067,1717623032912,-151.65,0.0002999,2]
[328625068,1717623032921,-151.65,0.0002999,2]
[328625069,1717623032931,-151.65,0.0002999,2]
[328625070,1717623032940,-151.65,0.0002999,2]
[328625071,1717623032950,-151.65,0.0002999,2]
[328625072,1717623032959,-151.65,0.0002999,2]
[328625073,1717623032967,-171.82,0.0002999,2]
[328625074,1717623032977,-151.65,0.0002999,2]
[328625075,1717623032985,-151.65,0.0002999,2]
[328625076,1717623032995,-151.65,0.0002999,2]
[328625077,1717623033005,-171.82,0.0002999,2]
[328625078,1717623033014,-151.65,0.0002999,2]
[328625079,1717623033025,-151.65,0.0002999,2]
[328625080,1717623033036,-151.65,0.0002999,2]
[328625081,1717623033047,-171.82,0.0002999,2]
[328625082,1717623033057,-151.65,0.0002999,2]
[328625083,1717623033068,-151.65,0.0002999,2]
[328625084,1717623033077,-151.65,0.0002999,2]
[328625085,1717623033086,-151.65,0.0002999,2]
[328625086,1717623033095,-171.82,0.0002999,2]
[328625087,1717623033104,-151.65,0.0002999,2]
[328625088,1717623033114,-151.65,0.0002999,2]
[328625089,1717623033123,-171.82,0.0002999,2]
[328625090,1717623033132,-151.65,0.0002999,2]
[328625091,1717623033141,-151.65,0.0002999,2]
[328625092,1717623033150,-171.82,0.0002999,2]
[328625093,1717623033160,-151.65,0.0002999,2]
[328625094,1717623033169,-151.65,0.0002999,2]
[328625095,1717623033178,-151.65,0.0002999,2]
[328625096,1717623033187,-171.82,0.0002999,2]
[328625097,1717623033197,-151.65,0.0002999,2]
[328625098,1717623033206,-171.82,0.0002999,2]
[328625099,1717623033215,-151.65,0.0002999,2]
[328625100,1717623033225,-151.65,0.0002999,2]
[328625101,1717623033234,-151.65,0.0002999,2]
[328625102,1717623033244,-171.82,0.0002999,2]
[328625103,1717623033256,-151.65,0.0002999,2]
[328625104,1717623033265,-151.65,0.0002999,2]
[328625105,1717623033276,-151.65,0.0002999,2]
[328625106,1717623033286,-151.65,0.0002999,2]
[328625107,1717623033294,-151.65,0.0002999,2]
[328625108,1717623033304,-151.65,0.0002999,2]
[328625109,1717623033313,-151.65,0.0002999,2]
[328625110,1717623033322,-151.65,0.0002999,2]
[328625111,1717623033332,-151.65,0.0002999,2]
[328625112,1717623033342,-151.65,0.0002999,2]
[328625113,1717623033351,-151.65,0.0002999,2]
[328625114,1717623033361,-151.65,0.0002999,2]
[328625115,1717623033370,-151.65,0.0002999,2]
[328625116,1717623033380,-151.65,0.0002999,2]
[328625117,1717623033389,-151.65,0.0002999,2]
[328625118,1717623033399,-387.85,0.0002999,2]
[328625119,1717623033408,-387.85,0.0002999,2]
[328625120,1717623033418,-387.85,0.0002999,2]
[328625121,1717623033427,-387.85,0.0002999,2]
[328625122,1717623033435,-314.57114584,0.00029992,2]
[328625123,1717623033445,-496.75865701,0.00029993,4]
[328625124,1717623033454,-500.0,0.00029993,4]
[328625125,1717623033463,-500.0,0.00029993,4]
[328625126,1717623033473,-500.0,0.00029993,4]
[328625127,1717623033482,-518.62414497,0.00029993,4]
[328625128,1717623033491,-155.0,0.00029993,4]
[328625129,1717623033501,-918.75225033,0.00029998,2]
[328625130,1717623033510,-5000.0,0.00029998,7]
[328625131,1717623033519,-155.0,0.00029998,2]
[328625132,1717623033528,-156.415971,0.00029998,2]
[328625133,1717623033537,-155.0,0.00029998,2]
[328625134,1717623033547,-862.13999275,0.00029998,2]
[328625135,1717623033557,-1222.05886366,0.00029998,2]
[328625136,1717623033566,-407.27221683,0.00029998,2]
[328625137,1717623033576,-155.0,0.00029998,2]
[328625138,1717623033585,-3687.51245052,0.00029998,2]
[328625139,1717623033595,-155.0,0.00029998,2]
[328625140,1717623033604,-188.96384128,0.00029998,2]
[328625141,1717623033614,-296.512316,0.00029998,2]
[328625142,1717623033623,-155.12537253,0.00029998,2]
[328625143,1717623033633,-411.28297343,0.00029998,2]
[328625144,1717623033643,-155.27504335,0.00029998,2]
[328625145,1717623033654,-306.21354321,0.00029998,2]
[328625146,1717623033664,-309.28163094,0.00029998,2]
[328625147,1717623033674,-307.01788489,0.00029998,2]
[328625148,1717623033683,-158.77642645,0.00029998,2]
[328625149,1717623033693,-223.31184819,0.00029998,2]
[328625150,1717623033702,-236.26632503,0.00029998,2]
[328625151,1717623033712,-159.02770413,0.00029998,2]
[328625152,1717623033725,-301.29242923,0.00029998,2]
[328625153,1717623033735,-206.79579725,0.00029998,2]
[328625154,1717623033744,-175.83806085,0.00029998,2]
[328625155,1717623033754,-411.24369396,0.00029998,2]
[328625156,1717623033765,-155.20092881,0.00029998,2]
[328625157,1717623033775,-155.92281657,0.00029998,2]
[328625158,1717623033784,-201.00032063,0.00029998,2]
[328625159,1717623033796,-220.21302523,0.00029998,2]
[328625160,1717623033806,-155.96910129,0.00029998,2]
[328625161,1717623033815,-208.74796644,0.00029998,7]
[328625162,1717623033825,-207.12338588,0.00029998,2]
[328625163,1717623033835,-474.29092432,0.00029998,2]
[328625164,1717623033844,-298.39204142,0.00029998,2]
[328625165,1717623033854,-155.0,0.00029998,2]
[328625166,1717623033864,-195.53889692,0.00029998,2]
[328625167,1717623033875,-170.26394329,0.00029998,2]
[328625168,1717623033885,-150.01,0.00029999,2]
[328625169,1717623033894,-517.90295368,0.00029999,4]
[328625170,1717623033903,-519.42226597,0.00029999,4]
[328625171,1717623033912,-500.0,0.00029999,4]
[328625172,1717623033921,-524.11045853,0.00029999,4]
[328625173,1717623033931,-156.73549978,0.00029999,4]
[328625174,1717623033941,-401.70184837,0.00029999,4]
[328625175,1717623033950,-500.0,0.00029999,4]
[328625176,1717623033959,-500.0,0.00029999,4]
[328625177,1717623033968,-1000.0,0.00029999,2]
[328625178,1717623033977,-998.9974,0.00029999,2]
[328625179,1717623033986,-500.0,0.00029999,4]
[328625180,1717623033996,-509.24,0.00029999,4]
[328625181,1717623034005,-1649.87878,0.00029999,2]
[328625182,1717623034014,-614.85042757,0.00029999,4]
[328625183,1717623034023,-4144.2636668,0.00029999,2]
[328625184,1717623034033,-500.0,0.00029999,4]
[328625185,1717623034042,-500.0,0.00029999,4]
[328625186,1717623034051,-500.0,0.00029999,4]
[328625187,1717623034060,-500.0,0.00029999,4]
[328625188,1717623034070,-502.03760464,0.00029999,4]
[328625189,1717623034079,-154.31028269,0.00029999,4]
[328625190,1717623034088,-186.83836746,0.00029999,4]
[328625191,1717623034098,-466.31,0.00029999,4]
[328625192,1717623034107,-500.0,0.00029999,4]
[328625193,1717623034116,-500.0,0.00029999,4]
[328625194,1717623034125,-500.0,0.00029999,4]
[328625195,1717623034134,-500.0,0.00029999,4]
[328625196,1717623034143,-500.0,0.00029999,4]
[328625197,1717623034153,-500.0,0.00029999,4]
[328625198,1717623034163,-500.0,0.00029999,4]
[328625199,1717623034173,-500.0,0.00029999,4]
[328625200,1717623034349,-500.0,0.00029999,4]
[328625201,1717623034358,-500.0,0.00029999,4]
[328625202,1717623034367,-500.0,0.00029999,4]
[328625203,1717623034378,-270.89480906,0.00029999,4]
[328625204,1717623034388,-497.4975,0.00029999,4]
[328625205,1717623034397,-163.76,0.00029999,4]
[328625206,1717623034407,-251.21251059,0.00029999,4]
[328625207,1717623034418,-251.3,0.00029999,4]
[328625208,1717623034427,-150.39015117,0.00029999,4]
[328625209,1717623034436,-500.0,0.00029999,4]
[328625210,1717623034446,-286.68,0.00029999,4]
[328625211,1717623034456,-500.0,0.00029999,4]
[328625212,1717623034465,-502.58674937,0.00029999,4]
[328625213,1717623034475,-500.0,0.00029999,4]
[328625214,1717623034485,-351.76781143,0.00029999,4]
[328625215,1717623034495,-500.0,0.00029999,4]
[328625216,1717623034505,-180.69,0.00029999,4]
[328625217,1717623034514,-491.6157313,0.00029999,4]
[328625218,1717623034524,-150.0,0.00029999,2]
[328625219,1717623034534,-150.0,0.00029999,7]
[328625220,1717623034543,-500.0,0.00029999,4]
[328625221,1717623034553,-500.0,0.00029999,4]
[328625222,1717623034562,-507.09606925,0.00029999,4]
[328625223,1717623034571,-500.0,0.00029999,4]
[328625224,1717623034580,-500.0,0.00029999,4]
[328625225,1717623034589,-55951.36762789,0.0003,2]
[328625226,1717623034599,-154.0,0.0003,5]
[328625227,1717623034608,-859.75003373,0.0003,5]
[328625228,1717623034617,-101271.43256735,0.0003,13]
[328625229,1717623034627,-19899.70613874,0.0003,2]
[328625230,1717623034750,-5200.0,0.0003,2]
[328625231,1717623034761,-632.46840949,0.0003,2]
[328625232,1717623034774,-60946.11947228,0.0003,2]
[328625233,1717623034796,-0.07834864,0.0003,2]
[328625234,1717623036622,2610.75390442,0.00023896,2]
[328625235,1717623038028,-150.01,0.00029999,2]
[328625239,1717623038038,-778.11833266,0.0003,2]
[328625244,1717623038050,-37182.85720251,0.0003,2]
[328625260,1717623038254,-4e-08,0.0003,2]
[328625261,1717623038266,-708.62825922,0.0003,2]
[328625262,1717623038505,-3540.50720582,0.0003,2]
[328625263,1717623038517,-5000.0,0.0003,2]
[328625264,1717623038528,-21774.56130596,0.0003,2]
[328625265,1717623038562,-810.16228092,0.0003,2]
[328625266,1717623038573,-1153.0,0.0003,2]
[328625267,1717623038585,-300.32,0.0003,2]
[328625268,1717623038596,-697.76274,0.0003,2]
[328625269,1717623038682,-238.12233709,0.0003,2]
[328625296,1717623041276,-268.20766282,0.00029998,2]
[328625298,1717623041285,-51.91608718,0.00029999,2]
[328625304,1717623041335,-98.09391282,0.00029999,2]
[328625306,1717623041344,-150.0,0.0003,5]
[328625308,1717623041353,-692356.99022364,0.0003,2]
[328625313,1717623041393,-576.01570255,0.0003,2]
[328625322,1717623041594,-2e-08,0.0003,2]
[328625323,1717623041606,-2998.99745765,0.0003,2]
[328625324,1717623041618,-5738.64223877,0.0003,2]
[328625325,1717623041629,-1795.44458302,0.0003,2]
[328625326,1717623041641,-1502.27890801,0.0003,2]
[328625356,1717623043233,-3592.39993806,0.0003,2]
[328625365,1717623043314,-1997.23324403,0.0003,2]
[328625367,1717623043325,-3019.74359619,0.0003,2]
[328625369,1717623043336,-2651.34418105,0.0003,2]
[328625371,1717623043347,-313.72148482,0.0003,2]
[328625377,1717623043426,-5274.23487795,0.0003,2]
[328625378,1717623043437,-372.86000006,0.0003,2]
[328625380,1717623043449,-31122.93866475,0.0003,2]
[328625403,1717623043688,-418.30973814,0.0003,2]
[328625405,1717623043700,-968.85757747,0.0003,2]
[328625407,1717623043712,-1874488.48139441,0.0003,2]
[328625554,1717623046167,-295.0291123,0.00029999,2]
[328625555,1717623046178,-7211.39260372,0.0003,2]
[328625556,1717623046229,-0.02427075,0.0003,2]
[328625557,1717623046319,-1845.1206747,0.000299,15]
[328625558,1717623046331,-471.845673,0.000299,15]
[328625559,1717623046372,-1338.62,0.000299,15]
[328625560,1717623046528,-7870.96480936,0.000299,15]
[328625561,1717623046537,-2792.83519064,0.0003,2]
[328625578,1717623052728,226.57668191,0.00022499,2]
[328625579,1717623058621,1862.03143649,0.00023896,2]
[328625580,1717623074735,226.57668191,0.00022499,2]
[328625582,1717623092736,226.57668191,0.00022499,2]
[328625584,1717623112736,226.57668191,0.00022499,2]
[328625585,1717623120667,1301.32281133,0.00017259,2]
[328625586,1717623130755,226.57668191,0.00022499,2]
[328625587,1717623158227,1999.3,0.00033552,30]
[328625588,1717623222981,2529804.39502231,0.00014,2]
[328625589,1717623223025,158321.82961991,0.00014,2]
[328625590,1717623223068,1479612.71115975,0.00014,2]
[328625591,1717623342505,690.0,0.00033552,30]
[328625599,1717623396106,167489.76978275,0.00014,2]
[328625600,1717623432860,239.60720343,0.00033552,120]
[328625602,1717623465818,189.0,0.00033552,30]
[328625603,1717623941299,340.0,0.00033484,30]
[328625607,1717624050163,-625.70433105,0.00017224,2]
[328625608,1717624050182,-410.97295669,0.00017225,2]
[328625609,1717624050200,-253.14643923,0.00017225,2]
[328625610,1717624050219,-885.31313169,0.00017226,2]
[328625611,1717624050237,-625.28915843,0.00017226,2]
[328625612,1717624050259,-658.4965362,0.00017227,2]
[328625613,1717624050279,-296.58359376,0.00017228,2]
[328625614,1717624050299,-803.0,0.00017237,2]
[328625615,1717624050323,-150.0,0.00017259,2]
[328625616,1717624050343,-855.56363508,0.0001726,2]
[328625617,1717624050362,-1273.62,0.00017534,6]
[328625618,1717624050383,-499.99,0.00017534,2]
[328625619,1717624050406,-210.0,0.00018985,2]
[328625620,1717624050428,-257.8719227,0.0002,2]
[328625621,1717624050452,-194.77286554,0.000201,2]
[328625622,1717624150119,-2552.12894963,0.00015075,2]
[328625623,1717624150139,-150.0,0.00019451,2]
[328625624,1717624150160,-180.5825281,0.000201,2]
[328625625,1717624150180,-226.57668191,0.00021199,2]
[328625626,1717624150199,-167.64,0.000212,2]
[328625627,1717624154169,-947.01157841,0.000217,2]
[328625628,1717624156169,-675.98842159,0.000217,2]
[328625629,1717624156189,-718.0,0.000217,2]
[328625630,1717624156209,-233.43894078,0.00023,2]
[328625631,1717624156229,-603.594073,0.00024261,2]
[328625632,1717624156249,-163.2,0.00024384,2]
[328625633,1717624156273,-747.81,0.00024756,2]
[328625634,1717624156296,-713.68646057,0.00025,2]
[328625635,1717624156317,-166.71,0.00025914,2]
[328625636,1717624156336,-904.0,0.00025914,2]
[328625637,1717624156359,-1212.51,0.00026437,2]
[328625638,1717624156378,-233.42,0.0002645,2]
[328625639,1717624156397,-516.55810406,0.0002646,2]
[328625640,1717624161042,2552.12894963,0.00015075,2]
[328625641,1717624162215,-250.0,0.00026467,2]
[328625642,1717624162248,-250.0,0.00026469,2]
[328625643,1717624162272,-200.0,0.00026475,2]
[328625644,1717624162297,-234.25655496,0.00026517,2]
[328625645,1717624163863,180.5825281,0.000201,2]
[328625646,1717624164612,226.57668191,0.00022499,2]
[328625647,1717624165108,-4609.46469899,0.00025914,2]
[328625654,1717624180936,1358.29102666,0.00019436,2]
[328625655,1717624184618,226.57668191,0.00022499,2]
[328625656,1717624185862,180.41102047,0.000201,2]
[328625657,1717624200627,226.57668191,0.00022499,2]
[328625661,1717624214054,155.75,0.00024384,2]
[328625662,1717624218687,226.57668191,0.00022499,2]
[328625667,1717624232375,-3997.2538822,0.00025914,2]
[328625668,1717624232474,-2069.52399985,0.00025914,2]
[328625669,1717624232493,-5488.35724,0.00025914,2]
[328625670,1717624232509,-1150.65467205,0.00025914,2]
[328625671,1717624232521,-462.56,0.00025914,2]
[328625672,1717624232720,-6122.18550691,0.00025914,2]
[328625673,1717624232730,-180.43440108,0.00026417,2]
[328625674,1717624232741,-2516.74344504,0.00026517,2]
[328625675,1717624232750,-150.0,0.00026535,2]
[328625676,1717624232760,-500.0,0.00026553,2]
[328625677,1717624232770,-452.89746239,0.00026698,2]
[328625678,1717624232779,-204.37562916,0.00026998,2]
[328625679,1717624232789,-747.81,0.0002702,2]
[328625680,1717624232798,-276.12,0.000273,2]
[328625681,1717624232808,-768.21,0.00027615,2]
[328625682,1717624232818,-20302.90006963,0.00028,6]
[328625683,1717624232834,-956.0721124,0.00028,6]
[328625684,1717624232845,-960.42655982,0.00028,6]
[328625685,1717624232857,-5801.46363943,0.00028,6]
[328625686,1717624232868,-535.511,0.00028,6]
[328625687,1717624232880,-746.56164777,0.00028,6]
[328625688,1717624232891,-830.08689098,0.00028,6]
[328625689,1717624232903,-835.43745456,0.00028,6]
[328625690,1717624232936,226.57668191,0.00022499,2]
[328625691,1717624232949,-500.0,0.00028,6]
[328625692,1717624232961,-8298.41396264,0.00028,6]
[328625693,1717624232973,-2400.0,0.00028,6]
[328625694,1717624232986,-1051.26476866,0.00028,6]
[328625704,1717624238350,-713.68646057,0.0002818,2]
[328625705,1717624238360,-2376.4039346,0.00028181,2]
[328625706,1717624238369,-670.62798644,0.00028498,2]
[328625707,1717624238378,-182.3,0.00028548,2]
[328625708,1717624238388,-276.12,0.00028665,2]
[328625709,1717624238398,-608.31028849,0.00028798,2]
[328625710,1717624238409,-17.2502625,0.00028798,2]
[328625711,1717624238419,-605.2807045,0.00029,2]
[328625712,1717624238430,-157.7192955,0.00029,2]
[328625713,1717624238439,-633.06109318,0.00029,2]
[328625714,1717624238450,-205.93890682,0.00029,2]
[328625715,1717624238459,-695.01634335,0.00029,2]
[328625716,1717624238468,-828.60258635,0.00029,2]
[328625717,1717624238480,-119.76584486,0.00029,2]
[328625718,1717624238490,-660.10414338,0.00029,2]
[328625719,1717624238499,-1212.51,0.00029177,2]
[328625720,1717624238508,-747.81,0.00029284,2]
[328625721,1717624238517,-487.143628,0.00029498,2]
[328625722,1717624238527,-1022.94,0.000295,2]
[328625723,1717624238536,-252.79263778,0.00029698,2]
[328625724,1717624238545,-611.97702126,0.000297,2]
[328625725,1717624238557,-7247.88125866,0.000297,2]
[328625726,1717624238569,-3793.72229387,0.000297,2]
[328625727,1717624238578,-1374.89899,0.000297,2]
[328625728,1717624238587,-1782.0,0.000297,2]
[328625729,1717624238596,-204.24671297,0.0002971,2]
[328625730,1717624238607,-176.45365844,0.0002971,2]
[328625731,1717624238616,-150.0,0.00029727,2]
[328625732,1717624238626,-150.0,0.00029729,2]
[328625733,1717624238635,-150.0,0.00029741,2]
[328625734,1717624238645,-150.0,0.00029743,2]
[328625735,1717624238655,-150.0,0.00029743,2]
[328625736,1717624238665,-150.0,0.00029746,2]
[328625737,1717624238674,-150.0,0.0002975,2]
[328625738,1717624238683,-152.23419922,0.00029754,2]
[328625739,1717624238692,-150.0,0.00029754,2]
[328625740,1717624238701,-150.0,0.00029756,2]
[328625741,1717624238711,-304.08544098,0.00029757,2]
[328625742,1717624238720,-150.0,0.00029757,2]
[328625743,1717624238729,-500.0,0.0002976,2]
[328625744,1717624238738,-200.0,0.0002976,2]
[328625745,1717624238747,-150.0,0.00029766,2]
[328625746,1717624238756,-150.0,0.00029766,2]
[328625747,1717624238765,-154.14876978,0.00029769,2]
[328625748,1717624238774,-150.0,0.00029774,2]
[328625749,1717624238784,-150.0,0.00029777,2]
[328625750,1717624238794,-150.0,0.00029777,2]
[328625751,1717624238803,-200.0,0.00029784,2]
[328625752,1717624238811,-150.0,0.00029784,2]
[328625753,1717624238820,-150.0,0.00029787,2]
[328625754,1717624238829,-150.0,0.00029789,2]
[328625755,1717624238838,-150.0,0.00029791,2]
[328625756,1717624238847,-150.0,0.00029797,2]
[328625757,1717624238856,-5214.09778382,0.000298,2]
[328625758,1717624238867,-5085.22599903,0.000298,2]
[328625759,1717624238879,-2402.04551715,0.000298,2]
[328625760,1717624238889,-1565.74596654,0.000298,7]
[328625761,1717624238899,-248.40834754,0.000298,2]
[328625762,1717624238908,-155.0,0.000298,2]
[328625763,1717624238917,-158.06,0.00029808,30]
[328625764,1717624238926,-150.0,0.00029814,2]
[328625765,1717624238935,-248.40834754,0.00029814,2]
[328625766,1717624238944,-152.23419922,0.00029826,2]
[328625767,1717624238953,-150.0,0.00029826,2]
[328625768,1717624238963,-248.40834754,0.00029829,2]
[328625769,1717624238972,-150.0,0.00029829,2]
[328625770,1717624238981,-154.14876978,0.0002983,2]
[328625771,1717624238991,-304.08544098,0.0002984,2]
[328625772,1717624239000,-150.0,0.00029841,2]
[328625773,1717624239009,-248.40834754,0.00029843,2]
[328625774,1717624239019,-150.0,0.00029844,2]
[328625775,1717624239028,-150.0,0.00029845,2]
[328625776,1717624239038,-150.0,0.00029847,2]
[328625777,1717624239047,-105.41103867,0.0002985,2]
[328625778,1717624239058,-44.58896133,0.0002985,2]
[328625779,1717624239068,-150.0,0.00029851,2]
[328625780,1717624239077,-248.40834754,0.00029857,2]
[328625781,1717624239086,-1.11988615,0.00029859,2]
[328625782,1717624239098,-148.88011385,0.00029859,2]
[328625783,1717624239107,-150.0,0.0002986,2]
[328625784,1717624239116,-41.95866435,0.00029868,2]
[328625785,1717624239127,-108.04133565,0.00029868,2]
[328625786,1717624239136,-150.0,0.00029869,2]
[328625787,1717624239146,-150.0,0.0002987,2]
[328625788,1717624239156,-121.7799978,0.00029871,2]
[328625789,1717624239167,-126.62834974,0.00029871,2]
[328625790,1717624239178,-150.0,0.00029875,2]
[328625791,1717624239187,-150.0,0.00029883,2]
[328625792,1717624239198,-150.0,0.00029883,2]
[328625793,1717624239207,-248.40834754,0.00029886,2]
[328625794,1717624239217,-150.0,0.00029888,2]
[328625795,1717624239227,-194.74,0.0002989,3]
[328625796,1717624239236,-584.24,0.0002989,3]
[328625797,1717624239246,-154.14876978,0.00029895,2]
[328625798,1717624239256,-317.6045917,0.00029898,2]
[328625799,1717624239266,-1000.0,0.000299,2]
[328625800,1717624239275,-4481.07203298,0.000299,2]